[Event "Blixt-SM 2021"]
[Site "Elite Hotel Marina Plaza, Kungstorget 6, Helsingborg, Sweden"]
[Date "2021.11.14"]
[Round "1.3"]
[White "Terochin, Piotr"]
[Black "Mauritsson, Sebastian"]
[Result "1/2-1/2"]
[TimeControl "3 minutes + 2 seconds per move."]
[BlackTitle "FM"]
[WhiteFideId "1113682"]
[BlackFideId "1707892"]
[WhiteElo "1779"]
[BlackElo "2390"]

1. e4 {[%clk 00:03:02]} {[%emt 00:00:02]} c5 {[%clk 00:03:04]} 2. c3 {[%clk
00:03:03]} {[%emt 00:00:01]} d5 {[%clk 00:02:58]} {[%emt 00:00:08]} 3. exd5
{[%clk 00:03:02]} {[%emt 00:00:02]} Nf6 {[%clk 00:02:58]} 4. d4 {[%clk
00:03:02]} {[%emt 00:00:02]} cxd4 {[%clk 00:02:55]} {[%emt 00:00:06]} 5. cxd4
{[%clk 00:03:02]} {[%emt 00:00:02]} Nxd5 {[%clk 00:02:50]} {[%emt 00:00:07]} 6.
Nc3 {[%clk 00:03:02]} {[%emt 00:00:01]} g6 {[%clk 00:02:48]} {[%emt 00:00:04]}
7. Bc4 {[%clk 00:02:55]} {[%emt 00:00:09]} Nxc3 {[%clk 00:02:44]} {[%emt
00:00:06]} 8. bxc3 {[%clk 00:02:55]} {[%emt 00:00:03]} Bg7 {[%clk 00:02:43]}
{[%emt 00:00:02]} 9. Nf3 {[%clk 00:02:41]} {[%emt 00:00:15]} O-O {[%clk
00:02:43]} {[%emt 00:00:02]} 10. O-O {[%clk 00:02:41]} {[%emt 00:00:02]} Qc7
{[%clk 00:02:41]} {[%emt 00:00:05]} 11. Qe2 {[%clk 00:02:25]} {[%emt 00:00:18]}
Bg4 {[%clk 00:02:39]} {[%emt 00:00:03]} 12. Bb3 {[%clk 00:02:09]} {[%emt
00:00:18]} Qxc3 {[%clk 00:02:29]} {[%emt 00:00:13]} 13. Be3 {[%clk 00:02:06]}
{[%emt 00:00:04]} Nc6 {[%clk 00:02:10]} {[%emt 00:00:21]} 14. Rac1 {[%clk
00:01:57]} {[%emt 00:00:11]} Bxf3 {[%clk 00:02:05]} {[%emt 00:00:07]} 15. Qxf3
{[%clk 00:01:53]} {[%emt 00:00:06]} Nxd4 {[%clk 00:01:56]} {[%emt 00:00:11]} 16.
Qd1 {[%clk 00:01:34]} {[%emt 00:00:21]} Qb2 {[%clk 00:01:40]} {[%emt 00:00:18]}
17. Rb1 {[%clk 00:01:27]} {[%emt 00:00:09]} Ne2+ {[%clk 00:01:37]} {[%emt
00:00:05]} 18. Kh1 {[%clk 00:01:27]} {[%emt 00:00:02]} Nc3 {[%clk 00:01:37]}
{[%emt 00:00:02]} 19. Rxb2 {[%clk 00:01:07]} {[%emt 00:00:22]} Nxd1 {[%clk
00:01:37]} {[%emt 00:00:01]} 20. Rd2 {[%clk 00:01:03]} {[%emt 00:00:06]} Nxe3
{[%clk 00:01:35]} {[%emt 00:00:04]} 21. fxe3 {[%clk 00:01:04]} {[%emt
00:00:01]} Rad8 {[%clk 00:00:40]} {[%emt 00:00:56]} 22. Rxd8 {[%clk 00:01:01]}
{[%emt 00:00:05]} Rxd8 {[%clk 00:00:41]} {[%emt 00:00:02]} 23. Rxf7 {[%clk
00:01:01]} {[%emt 00:00:01]} Kh8 {[%clk 00:00:32]} {[%emt 00:00:11]} 24. Rxe7
{[%clk 00:01:01]} {[%emt 00:00:03]} Bf6 {[%clk 00:00:11]} {[%emt 00:00:23]} 25.
Rxb7 {[%clk 00:00:59]} {[%emt 00:00:05]} Bg5 {[%clk 00:00:10]} {[%emt
00:00:03]} 26. e4 {[%clk 00:00:53]} {[%emt 00:00:08]} Be3 {[%clk 00:00:11]} 27.
g3 {[%clk 00:00:51]} {[%emt 00:00:04]} Rc8 {[%clk 00:00:11]} {[%emt 00:00:02]}
28. Kg2 {[%clk 00:00:50]} {[%emt 00:00:02]} Rf8 {[%clk 00:00:11]} {[%emt
00:00:02]} 29. Bd5 {[%clk 00:00:46]} {[%emt 00:00:06]} 1/2-1/2

[Event "Blixt-SM 2021"]
[Site "Elite Hotel Marina Plaza, Kungstorget 6, Helsingborg, Sweden"]
[Date "2021.11.14"]
[Round "3.1"]
[White "Jepson, Christian"]
[Black "Frisk, Ellinor"]
[Result "1-0"]
[TimeControl "3 minutes + 2 seconds per move."]
[WhiteTitle "IM"]
[BlackTitle "WIM"]
[WhiteFideId "1701185"]
[BlackFideId "1708481"]
[WhiteElo "2412"]
[BlackElo "2142"]

1. Nf3 {[%clk 00:03:02]} {[%emt 00:00:02]} c5 {[%clk 00:03:00]} {[%emt
00:00:05]} 2. c4 {[%clk 00:03:03]} Nc6 {[%clk 00:03:00]} {[%emt 00:00:02]} 3.
d4 {[%clk 00:03:03]} {[%emt 00:00:01]} cxd4 {[%clk 00:03:00]} {[%emt 00:00:02]}
4. Nxd4 {[%clk 00:03:05]} g6 {[%clk 00:03:00]} {[%emt 00:00:02]} 5. e4 {[%clk
00:03:04]} {[%emt 00:00:02]} Nf6 {[%clk 00:02:49]} {[%emt 00:00:13]} 6. Nc3
{[%clk 00:03:05]} {[%emt 00:00:01]} Nxd4 {[%clk 00:02:47]} {[%emt 00:00:05]} 7.
Qxd4 {[%clk 00:03:05]} {[%emt 00:00:01]} d6 {[%clk 00:02:48]} 8. Bg5 {[%clk
00:03:00]} {[%emt 00:00:08]} Bg7 {[%clk 00:02:48]} {[%emt 00:00:02]} 9. f3
{[%clk 00:02:13]} {[%emt 00:00:48]} O-O {[%clk 00:02:48]} {[%emt 00:00:02]} 10.
Qd2 {[%clk 00:02:14]} {[%emt 00:00:01]} Bd7 {[%clk 00:02:40]} {[%emt 00:00:11]}
11. Be2 {[%clk 00:02:11]} {[%emt 00:00:05]} Qa5 {[%clk 00:02:36]} {[%emt
00:00:07]} 12. a3 {[%clk 00:01:48]} {[%emt 00:00:24]} Rfc8 {[%clk 00:02:34]}
{[%emt 00:00:04]} 13. O-O {[%clk 00:01:37]} {[%emt 00:00:14]} a6 {[%clk
00:02:31]} {[%emt 00:00:05]} 14. b4 {[%clk 00:01:34]} {[%emt 00:00:04]} Qd8
{[%clk 00:02:20]} {[%emt 00:00:13]} 15. Kh1 {[%clk 00:01:29]} {[%emt 00:00:08]}
Be6 {[%clk 00:02:21]} 16. e5 {[%clk 00:00:13]} {[%emt 00:01:17]} dxe5 {[%clk
00:02:17]} {[%emt 00:00:06]} 17. Qxd8+ {[%clk 00:00:14]} {[%emt 00:00:01]} Rxd8
{[%clk 00:02:18]} 18. Na4 {[%clk 00:00:15]} e4 {[%clk 00:01:56]} {[%emt
00:00:24]} 19. Rac1 {[%clk 00:00:16]} exf3 {[%clk 00:01:40]} {[%emt 00:00:18]}
20. Bxf3 Rab8 21. c5 {[%clk 00:00:17]} {[%emt 00:00:02]} Bd5 {[%clk 00:01:37]}
{[%emt 00:00:06]} 22. Nb6 {[%clk 00:00:14]} {[%emt 00:00:06]} Bxf3 {[%clk
00:01:37]} {[%emt 00:00:03]} 23. Rxf3 {[%clk 00:00:14]} {[%emt 00:00:01]} Rd4
{[%clk 00:01:25]} {[%emt 00:00:13]} 24. Re1 {[%clk 00:00:14]} {[%emt 00:00:03]}
Rbd8 {[%clk 00:01:15]} {[%emt 00:00:12]} 25. h3 {[%clk 00:00:15]} {[%emt
00:00:01]} Rd1 {[%clk 00:01:15]} {[%emt 00:00:02]} 26. Rff1 {[%clk 00:00:16]}
{[%emt 00:00:01]} Rxe1 {[%clk 00:01:15]} {[%emt 00:00:02]} 27. Rxe1 {[%clk
00:00:17]} e6 {[%clk 00:01:11]} {[%emt 00:00:06]} 28. Rf1 {[%clk 00:00:18]} Ne4
{[%clk 00:00:43]} {[%emt 00:00:31]} 29. Bxd8 {[%clk 00:00:18]} {[%emt
00:00:02]} Ng3+ {[%clk 00:00:44]} 30. Kg1 {[%clk 00:00:18]} {[%emt 00:00:02]}
Bd4+ {[%clk 00:00:45]} 31. Rf2 {[%clk 00:00:19]} Ne4 {[%clk 00:00:28]} {[%emt
00:00:19]} 32. Bh4 {[%clk 00:00:20]} {[%emt 00:00:02]} g5 {[%emt 00:00:09]} 33.
Kf1 gxh4 {[%clk 00:00:17]} {[%emt 00:00:05]} 34. Rf4 {[%clk 00:00:22]} Ng3+
{[%clk 00:00:17]} {[%emt 00:00:03]} 35. Ke1 {[%clk 00:00:23]} {[%emt 00:00:01]}
e5 {[%clk 00:00:13]} {[%emt 00:00:06]} 36. Rxh4 {[%clk 00:00:24]} {[%emt
00:00:01]} Nf5 {[%clk 00:00:11]} {[%emt 00:00:03]} 37. Rg4+ {[%clk 00:00:23]}
{[%emt 00:00:03]} Kf8 {[%clk 00:00:11]} 38. Nd5 {[%clk 00:00:22]} {[%emt
00:00:05]} Bb2 {[%clk 00:00:07]} {[%emt 00:00:05]} 39. a4 {[%clk 00:00:23]}
{[%emt 00:00:02]} h6 {[%clk 00:00:04]} {[%emt 00:00:06]} 40. Kd2 {[%clk
00:00:21]} {[%emt 00:00:04]} Bd4 {[%clk 00:00:05]} 41. Kd3 {[%clk 00:00:21]}
{[%emt 00:00:03]} Ke8 {[%clk 00:00:03]} {[%emt 00:00:03]} 42. Rg8+ {[%clk
00:00:21]} {[%emt 00:00:02]} Kd7 {[%clk 00:00:05]} 43. Nf6+ {[%clk 00:00:18]}
{[%emt 00:00:05]} Ke6 {[%clk 00:00:06]} 44. Ne4 {[%clk 00:00:18]} {[%emt
00:00:03]} Ne7 {[%clk 00:00:03]} {[%emt 00:00:04]} 45. Re8 {[%clk 00:00:18]}
{[%emt 00:00:02]} Kd7 {[%clk 00:00:04]} 46. Rb8 {[%clk 00:00:19]} Kc7 {[%clk
00:00:06]} {[%emt 00:00:01]} 47. Rf8 {[%clk 00:00:20]} f5 {[%clk 00:00:06]}
{[%emt 00:00:01]} 48. Ng3 {[%clk 00:00:21]} {[%emt 00:00:01]} f4 {[%clk
00:00:05]} {[%emt 00:00:03]} 49. Nf5 {[%clk 00:00:20]} {[%emt 00:00:04]} Nd5
{[%clk 00:00:05]} {[%emt 00:00:02]} 50. Rf7+ {[%clk 00:00:20]} {[%emt
00:00:02]} Kb8 {[%clk 00:00:06]} 51. b5 {[%clk 00:00:20]} {[%emt 00:00:02]}
axb5 {[%clk 00:00:07]} 52. axb5 {[%clk 00:00:21]} {[%emt 00:00:01]} Bxc5 {[%clk
00:00:08]} {[%emt 00:00:01]} 53. Ke4 {[%clk 00:00:21]} {[%emt 00:00:02]} Nc3+
{[%clk 00:00:09]} {[%emt 00:00:01]} 54. Kxe5 {[%clk 00:00:22]} Nxb5 {[%clk
00:00:10]} {[%emt 00:00:02]} 55. Kxf4 {[%clk 00:00:22]} Nc7 {[%clk 00:00:09]}
{[%emt 00:00:04]} 56. Ke4 {[%clk 00:00:21]} {[%emt 00:00:04]} b5 {[%clk
00:00:10]} 57. Nd4 {[%clk 00:00:21]} {[%emt 00:00:02]} b4 {[%clk 00:00:09]}
{[%emt 00:00:03]} 58. g4 {[%clk 00:00:17]} {[%emt 00:00:06]} Kb7 {[%clk
00:00:06]} {[%emt 00:00:05]} 59. Ne6 {[%clk 00:00:16]} {[%emt 00:00:03]} Bd6
{[%clk 00:00:07]} 60. Nxc7 Bxc7 {[%clk 00:00:09]} 61. Kd3 {[%clk 00:00:18]} Kc6
{[%clk 00:00:09]} {[%emt 00:00:02]} 62. Kc4 {[%clk 00:00:18]} {[%emt 00:00:02]}
Bd6 {[%clk 00:00:11]} 63. Rf6 {[%clk 00:00:19]} Kd7 {[%clk 00:00:11]} {[%emt
00:00:03]} 64. Rxh6 {[%emt 00:00:07]} 1-0

[Event "Blixt-SM 2021"]
[Site "Elite Hotel Marina Plaza, Kungstorget 6, Helsingborg, Sweden"]
[Date "2021.11.14"]
[Round "4.8"]
[White "Rajcevski, Dejan"]
[Black "Troedsson, Anton"]
[Result "0-1"]
[TimeControl "3 minutes + 2 seconds per move."]
[WhiteFideId "1759027"]
[BlackFideId "1746006"]
[WhiteElo "1977"]
[BlackElo "2104"]

1. d4 {[%clk 00:03:03]} d5 {[%clk 00:03:04]} 2. Nf3 {[%clk 00:03:03]} {[%emt
00:00:02]} Nf6 {[%clk 00:03:05]} 3. Bf4 {[%clk 00:03:04]} {[%emt 00:00:01]} c5
{[%clk 00:03:05]} {[%emt 00:00:02]} 4. e3 {[%clk 00:03:04]} {[%emt 00:00:02]}
Nc6 {[%clk 00:03:04]} {[%emt 00:00:04]} 5. c3 {[%clk 00:03:04]} {[%emt
00:00:02]} Qb6 {[%clk 00:03:05]} {[%emt 00:00:02]} 6. Qb3 {[%clk 00:03:02]}
{[%emt 00:00:02]} c4 {[%clk 00:03:06]} {[%emt 00:00:02]} 7. Qc2 {[%clk
00:03:01]} {[%emt 00:00:03]} Bf5 {[%clk 00:03:07]} {[%emt 00:00:01]} 8. Qc1
{[%clk 00:03:03]} e6 {[%clk 00:03:07]} {[%emt 00:00:02]} 9. Be2 {[%clk
00:03:02]} {[%emt 00:00:03]} h6 {[%clk 00:03:07]} {[%emt 00:00:02]} 10. O-O
{[%clk 00:03:01]} {[%emt 00:00:02]} Be7 {[%clk 00:03:04]} {[%emt 00:00:06]} 11.
Nbd2 {[%clk 00:03:01]} {[%emt 00:00:02]} O-O {[%clk 00:03:03]} {[%emt
00:00:03]} 12. Ne5 {[%clk 00:02:58]} {[%emt 00:00:05]} Rac8 {[%clk 00:02:46]}
{[%emt 00:00:19]} 13. Nxc6 {[%clk 00:02:54]} {[%emt 00:00:06]} Qxc6 {[%clk
00:02:44]} {[%emt 00:00:03]} 14. h3 {[%clk 00:02:49]} {[%emt 00:00:07]} b5
{[%clk 00:02:44]} {[%emt 00:00:03]} 15. a3 {[%clk 00:02:50]} {[%emt 00:00:01]}
a5 {[%clk 00:02:44]} {[%emt 00:00:01]} 16. Re1 {[%clk 00:02:33]} {[%emt
00:00:19]} b4 {[%clk 00:02:37]} {[%emt 00:00:10]} 17. axb4 {[%clk 00:02:24]}
{[%emt 00:00:11]} axb4 {[%clk 00:02:37]} 18. Ra7 {[%clk 00:02:21]} {[%emt
00:00:05]} Bd6 {[%clk 00:02:31]} {[%emt 00:00:09]} 19. Bxd6 {[%clk 00:02:11]}
{[%emt 00:00:12]} Qxd6 {[%clk 00:02:31]} {[%emt 00:00:01]} 20. Qa1 {[%clk
00:02:12]} {[%emt 00:00:02]} Rb8 {[%clk 00:02:07]} {[%emt 00:00:25]} 21. Qa5
{[%clk 00:01:33]} {[%emt 00:00:41]} Qb6 {[%clk 00:01:55]} {[%emt 00:00:15]} 22.
Qxb6 {[%clk 00:01:22]} {[%emt 00:00:13]} Rxb6 {[%clk 00:01:56]} {[%emt
00:00:01]} 23. Rea1 {[%clk 00:01:22]} {[%emt 00:00:02]} bxc3 {[%clk 00:01:50]}
{[%emt 00:00:08]} 24. bxc3 {[%clk 00:01:23]} Rb2 {[%clk 00:01:51]} 25. R1a2
{[%clk 00:01:20]} {[%emt 00:00:06]} Rfb8 {[%clk 00:01:51]} {[%emt 00:00:01]} 26.
g4 {[%clk 00:01:17]} {[%emt 00:00:06]} Bg6 {[%clk 00:01:50]} {[%emt 00:00:03]}
27. Kg2 {[%clk 00:01:14]} {[%emt 00:00:04]} Be4+ {[%clk 00:01:20]} {[%emt
00:00:32]} 28. f3 {[%clk 00:01:11]} {[%emt 00:00:06]} Bg6 {[%clk 00:01:17]}
{[%emt 00:00:05]} 29. h4 {[%clk 00:01:11]} {[%emt 00:00:02]} h5 {[%clk
00:01:16]} {[%emt 00:00:02]} 30. g5 {[%clk 00:01:12]} {[%emt 00:00:02]} Ne8
{[%clk 00:01:17]} {[%emt 00:00:01]} 31. e4 {[%clk 00:01:06]} {[%emt 00:00:07]}
Nd6 {[%clk 00:01:12]} {[%emt 00:00:07]} 32. R7a6 {[%clk 00:00:43]} {[%emt
00:00:25]} Rxa2 {[%clk 00:01:10]} {[%emt 00:00:04]} 33. Rxa2 {[%clk 00:00:44]}
{[%emt 00:00:01]} dxe4 {[%clk 00:01:10]} {[%emt 00:00:01]} 34. Nxc4 {[%clk
00:00:35]} {[%emt 00:00:12]} exf3+ {[%clk 00:01:09]} {[%emt 00:00:03]} 35. Kxf3
{[%clk 00:00:30]} {[%emt 00:00:07]} Nf5 {[%clk 00:00:52]} {[%emt 00:00:18]} 36.
Nd2 {[%clk 00:00:18]} {[%emt 00:00:14]} Nxh4+ {[%clk 00:00:51]} {[%emt
00:00:03]} 37. Kf4 {[%clk 00:00:13]} {[%emt 00:00:08]} Nf5 {[%clk 00:00:44]}
{[%emt 00:00:09]} 38. Bd3 {[%clk 00:00:13]} {[%emt 00:00:02]} Rc8 {[%clk
00:00:38]} {[%emt 00:00:08]} 39. Bxf5 {[%clk 00:00:13]} {[%emt 00:00:02]} Bxf5
{[%clk 00:00:38]} {[%emt 00:00:02]} 40. c4 {[%clk 00:00:14]} f6 {[%clk
00:00:32]} {[%emt 00:00:07]} 41. Ra7 {[%clk 00:00:06]} {[%emt 00:00:11]} h4
{[%clk 00:00:30]} {[%emt 00:00:04]} 42. gxf6 {[%clk 00:00:06]} {[%emt
00:00:02]} gxf6 {[%clk 00:00:31]} {[%emt 00:00:01]} 43. c5 {[%clk 00:00:04]}
{[%emt 00:00:04]} h3 {[%clk 00:00:30]} {[%emt 00:00:02]} 44. Ra1 {[%clk
00:00:05]} {[%emt 00:00:02]} Rd8 {[%clk 00:00:24]} {[%emt 00:00:08]} 45. Nf3
{[%clk 00:00:06]} Kf7 {[%clk 00:00:21]} {[%emt 00:00:05]} 46. Rh1 {[%clk
00:00:07]} {[%emt 00:00:01]} Rg8 {[%clk 00:00:16]} {[%emt 00:00:08]} 47. Ke3
{[%clk 00:00:07]} {[%emt 00:00:01]} Rg3 {[%clk 00:00:14]} {[%emt 00:00:04]} 48.
Kf2 {[%clk 00:00:08]} Rg8 {[%clk 00:00:11]} {[%emt 00:00:05]} 49. Nh4 {[%clk
00:00:08]} {[%emt 00:00:01]} Bg4 {[%clk 00:00:11]} {[%emt 00:00:02]} 50. Nf3
{[%clk 00:00:06]} {[%emt 00:00:05]} Rd8 {[%clk 00:00:11]} {[%emt 00:00:02]} 51.
Rd1 {[%clk 00:00:06]} {[%emt 00:00:03]} e5 {[%clk 00:00:10]} {[%emt 00:00:03]}
52. d5 {[%clk 00:00:07]} {[%emt 00:00:01]} e4 {[%clk 00:00:12]} 53. Ne5+ {[%clk
00:00:03]} {[%emt 00:00:05]} fxe5 {[%clk 00:00:11]} {[%emt 00:00:02]} 54. Rd2
{[%clk 00:00:04]} {[%emt 00:00:01]} Ke7 {[%clk 00:00:08]} {[%emt 00:00:05]} 55.
Ke3 {[%clk 00:00:06]} {[%emt 00:00:02]} Bf5 {[%clk 00:00:07]} {[%emt 00:00:02]}
56. Ra2 {[%clk 00:00:06]} Rxd5 {[%clk 00:00:08]} {[%emt 00:00:02]} 57. Ra7+
{[%clk 00:00:08]} {[%emt 00:00:01]} Kf6 {[%clk 00:00:09]} {[%emt 00:00:01]} 58.
c6 {[%clk 00:00:09]} Rd3+ {[%clk 00:00:09]} {[%emt 00:00:01]} 59. Ke2 {[%clk
00:00:10]} {[%emt 00:00:01]} Rc3 {[%clk 00:00:10]} 60. c7 {[%clk 00:00:11]} h2
{[%clk 00:00:10]} {[%emt 00:00:02]} 61. Ra6+ {[%clk 00:00:12]} Kg5 {[%clk
00:00:11]} {[%emt 00:00:01]} 62. Ra3 {[%clk 00:00:13]} Rxc7 {[%clk 00:00:11]}
{[%emt 00:00:02]} 0-1

[Event "Blixt-SM 2021"]
[Site "Elite Hotel Marina Plaza, Kungstorget 6, Helsingborg, Sweden"]
[Date "2021.11.14"]
[Round "6.6"]
[White "Abedinov, Adnan"]
[Black "Kucuksari, Kaan"]
[Result "1-0"]
[TimeControl "3 minutes + 2 seconds per move."]
[BlackTitle "FM"]
[WhiteFideId "1703544"]
[BlackFideId "6380166"]
[WhiteElo "2170"]
[BlackElo "2301"]

1. c4 {[%clk 00:03:03]} f5 {[%clk 00:03:01]} 2. Nc3 {[%clk 00:03:03]} Nf6
{[%clk 00:03:03]} {[%emt 00:16:28]} 3. g3 {[%clk 00:03:05]} g6 {[%clk
00:03:04]} {[%emt 00:00:01]} 4. Bg2 {[%clk 00:03:06]} Bg7 {[%clk 00:03:05]} 5.
d4 {[%clk 00:03:06]} {[%emt 00:00:04]} O-O {[%emt 00:00:01]} 6. Nf3 {[%emt
00:00:01]} d6 {[%clk 00:03:06]} {[%emt 00:00:02]} 7. O-O {[%clk 00:03:08]}
{[%emt 00:00:01]} Qe8 {[%clk 00:03:07]} {[%emt 00:00:01]} 8. d5 {[%clk
00:03:08]} {[%emt 00:00:02]} Na6 {[%clk 00:02:58]} {[%emt 00:00:12]} 9. Nd4
{[%clk 00:03:08]} {[%emt 00:00:01]} Nc5 {[%clk 00:02:57]} {[%emt 00:00:03]} 10.
b4 {[%clk 00:03:01]} {[%emt 00:00:10]} Nce4 {[%clk 00:02:57]} {[%emt 00:00:02]}
11. Bb2 {[%clk 00:02:49]} {[%emt 00:00:13]} Nxc3 12. Bxc3 {[%clk 00:02:50]} Ne4
{[%clk 00:02:51]} {[%emt 00:00:08]} 13. Bb2 {[%clk 00:02:37]} {[%emt 00:00:15]}
c5 {[%clk 00:02:50]} {[%emt 00:00:03]} 14. dxc6 {[%clk 00:02:33]} {[%emt
00:00:05]} bxc6 {[%clk 00:02:51]} {[%emt 00:00:02]} 15. Qc2 {[%clk 00:02:12]}
{[%emt 00:00:23]} Rb8 {[%clk 00:02:44]} {[%emt 00:00:09]} 16. a3 {[%clk
00:01:55]} {[%emt 00:00:20]} Bd7 {[%clk 00:02:21]} {[%emt 00:00:25]} 17. Nb3
{[%clk 00:01:28]} {[%emt 00:00:28]} e5 {[%clk 00:01:51]} {[%emt 00:00:32]} 18.
Rad1 {[%clk 00:01:27]} {[%emt 00:00:03]} c5 {[%clk 00:00:38]} {[%emt 00:01:15]}
19. b5 {[%clk 00:01:28]} {[%emt 00:00:01]} Bxb5 {[%clk 00:00:29]} {[%emt
00:00:11]} 20. Bxe4 {[%clk 00:01:04]} {[%emt 00:00:26]} fxe4 {[%clk 00:00:25]}
{[%emt 00:00:06]} 21. cxb5 {[%clk 00:00:34]} {[%emt 00:00:32]} Qxb5 {[%clk
00:00:26]} 22. Rxd6 {[%clk 00:00:17]} {[%emt 00:00:19]} Qxb3 {[%clk 00:00:26]}
{[%emt 00:00:02]} 23. Qxb3+ {[%clk 00:00:15]} {[%emt 00:00:05]} Rxb3 {[%clk
00:00:26]} {[%emt 00:00:01]} 24. Bc1 {[%clk 00:00:17]} Rb6 {[%clk 00:00:11]}
{[%emt 00:00:17]} 25. Rd7 {[%clk 00:00:18]} {[%emt 00:00:01]} Rf7 {[%clk
00:00:11]} 26. Rd8+ {[%clk 00:00:19]} {[%emt 00:00:01]} Rf8 {[%clk 00:00:12]}
{[%emt 00:00:01]} 27. Rd7 {[%clk 00:00:20]} a6 {[%clk 00:00:08]} {[%emt
00:00:06]} 28. Be3 {[%clk 00:00:19]} {[%emt 00:00:03]} Rc6 {[%clk 00:00:09]} 29.
Rc1 {[%clk 00:00:19]} {[%emt 00:00:02]} c4 {[%clk 00:00:10]} 30. Rb1 {[%clk
00:00:17]} {[%emt 00:00:04]} c3 {[%clk 00:00:11]} {[%emt 00:00:01]} 31. Rbb7
{[%clk 00:00:18]} {[%emt 00:00:02]} Bf6 {[%clk 00:00:11]} {[%emt 00:00:02]} 32.
Bh6 {[%clk 00:00:16]} {[%emt 00:00:04]} c2 {[%clk 00:00:12]} 33. Rbc7 {[%clk
00:00:09]} {[%emt 00:00:09]} Rc8 {[%clk 00:00:09]} {[%emt 00:00:04]} 34. Rxc8+
Rxc8 {[%clk 00:00:10]} 35. Bc1 {[%clk 00:00:04]} {[%emt 00:00:01]} Rd8 {[%clk
00:00:04]} {[%emt 00:00:08]} 36. Rxd8+ Bxd8 {[%clk 00:00:06]} 37. e3 {[%clk
00:00:07]} Kf7 {[%clk 00:00:06]} {[%emt 00:00:02]} 38. Kf1 {[%clk 00:00:08]}
Ke6 39. Ke2 Kd5 {[%clk 00:00:09]} 40. Kd2 Kc4 41. Kxc2 {[%clk 00:00:12]} Ba5
{[%clk 00:00:11]} 42. Bb2 {[%clk 00:00:09]} {[%emt 00:00:06]} Be1 {[%clk
00:00:12]} 43. Bxe5 {[%clk 00:00:11]} Bxf2 {[%clk 00:00:13]} 44. Bd4 {[%clk
00:00:11]} {[%emt 00:00:01]} g5 {[%clk 00:00:12]} {[%emt 00:00:04]} 45. g4
{[%clk 00:00:12]} h6 {[%clk 00:00:10]} {[%emt 00:00:04]} 46. h3 {[%clk
00:00:14]} a5 {[%clk 00:00:10]} {[%emt 00:00:03]} 47. a4 {[%clk 00:00:08]}
{[%emt 00:00:08]} Kb4 {[%emt 00:00:02]} 48. Bg7 {[%clk 00:00:09]} Bxe3 {[%clk
00:00:11]} {[%emt 00:00:02]} 49. Bxh6 {[%clk 00:00:10]} Kxa4 {[%clk 00:00:09]}
{[%emt 00:00:04]} 50. h4 {[%clk 00:00:12]} Kb4 {[%clk 00:00:05]} {[%emt
00:00:05]} 51. Bxg5 {[%clk 00:00:13]} Bd4 {[%clk 00:00:07]} 52. Bd2+ {[%clk
00:00:13]} {[%emt 00:00:03]} Kb5 {[%clk 00:00:07]} {[%emt 00:00:01]} 53. g5
{[%clk 00:00:14]} a4 {[%clk 00:00:08]} {[%emt 00:00:01]} 54. h5 {[%clk
00:00:15]} Kc4 {[%clk 00:00:08]} {[%emt 00:00:03]} 55. h6 {[%clk 00:00:15]}
{[%emt 00:00:02]} a3 {[%clk 00:00:09]} 56. Bc1 {[%clk 00:00:14]} {[%emt
00:00:04]} a2 {[%clk 00:00:08]} {[%emt 00:00:02]} 57. Bb2 {[%clk 00:00:15]} e3
{[%clk 00:00:04]} {[%emt 00:00:07]} 58. g6 {[%clk 00:00:14]} {[%emt 00:00:03]}
e2 {[%clk 00:00:03]} {[%emt 00:00:02]} 59. g7 {[%clk 00:00:15]} e1=R {[%clk
00:00:04]} {[%emt 00:00:01]} 60. g8=Q+ {[%clk 00:00:15]} {[%emt 00:00:02]} Kc5
{[%clk 00:00:03]} {[%emt 00:00:03]} 61. Qc8+ {[%clk 00:00:16]} 1-0